bitfinex/quotes_BTCUSD_20251224
["timestamp","ask_amount","ask_price","bid_price","bid_amount"]
[1766618282184,0.01138757,87815.0,87808.0,6e-08]
[1766618282328,0.0113877,87814.0,87808.0,6e-08]
[1766618282534,0.12131,87810.0,87808.0,6e-08]
[1766618284640,0.13271,87810.0,87808.0,6e-08]
[1766618290138,0.13240571,87810.0,87808.0,6e-08]
[1766618290547,0.01138835,87809.0,87804.0,0.0004]
[1766618290722,0.01138835,87809.0,87797.0,0.01138991]
[1766618290723,0.12131,87804.0,87796.0,0.0004]
[1766618290928,0.12131,87799.0,87796.0,0.000251]
[1766618291176,0.0114,87805.0,87798.0,0.0569489]
[1766618291381,1e-06,87805.0,87799.0,0.01138965]
[1766618291514,0.0114,87808.0,87800.0,0.0569476]
[1766618291718,0.0114,87808.0,87802.0,0.01138926]
[1766618292021,0.0114,87808.0,87801.0,0.06833602]
[1766618292022,0.0114,87808.0,87801.0,0.01138939]
[1766618292244,0.0114,87808.0,87800.0,0.01138952]
[1766618292443,0.0114,87808.0,87799.0,0.07509551]
[1766618292846,0.0114,87808.0,87800.0,0.01138952]
[1766618293052,0.0114,87808.0,87799.0,0.07509551]
[1766618293939,0.0114,87808.0,87799.0,0.06370586]
[1766618294142,0.02278848,87808.0,87799.0,0.06370586]
[1766618294886,0.01138861,87807.0,87799.0,0.06370586]
[1766618295397,0.0114,87808.0,87799.0,0.06370586]
[1766618295737,0.02278848,87808.0,87799.0,0.06370586]
[1766618295937,0.01138861,87807.0,87799.0,0.06370586]
[1766618296389,0.01138861,87807.0,87800.0,0.00024908]
[1766618298015,0.02278848,87808.0,87800.0,0.00024908]
[1766618298306,0.01138861,87807.0,87800.0,0.00024908]
[1766618298519,0.02278848,87808.0,87800.0,0.00024908]
[1766618299295,0.06832782,87812.0,87800.0,0.00024908]
[1766618299296,0.0114,87809.0,87800.0,0.00024908]
[1766618299553,0.0114,87809.0,87801.0,0.01138939]
[1766618300409,0.0114,87809.0,87802.0,0.01138926]
[1766618300651,0.0114,87809.0,87801.0,0.01138939]
[1766618303829,0.0114,87809.0,87801.0,0.06833615]
[1766618304026,0.0114,87809.0,87801.0,0.01138939]
[1766618304549,0.0114,87809.0,87802.0,0.01138926]
[1766618305335,0.0114,87809.0,87801.0,0.01138939]
[1766618305575,0.0114,87809.0,87803.0,0.01138913]
[1766618305730,0.0114,87809.0,87801.0,0.01138939]
[1766618305945,0.0114,87809.0,87800.0,0.0116386]
[1766618306762,0.0114,87814.0,87806.0,0.01138874]
[1766618306968,8.047e-05,87817.0,87806.0,0.01138874]
[1766618306969,0.0114,87815.0,87808.0,0.01138848]
[1766618307143,0.0114,87815.0,87807.0,0.01138861]
[1766618307339,0.0114,87815.0,87806.0,0.01138874]
[1766618308147,0.0114,87815.0,87805.0,0.06833262]
[1766618308560,0.0114,87815.0,87806.0,0.01138874]
[1766618309147,0.0114,87815.0,87806.0,0.0114]
[1766618311618,0.02278757,87815.0,87806.0,0.0114]
[1766618313208,0.0113877,87814.0,87806.0,0.0114]
[1766618313363,0.02278757,87815.0,87806.0,0.0114]
[1766618314019,0.0113877,87814.0,87806.0,0.0114]
[1766618314395,0.01138822,87810.0,87806.0,0.010301]
[1766618315119,0.01138835,87809.0,87806.0,0.010301]
[1766618315297,0.01138822,87810.0,87806.0,0.010301]
[1766618316055,0.01138809,87811.0,87806.0,0.010301]
[1766618316408,0.01138796,87812.0,87806.0,0.010301]
[1766618317103,0.01138783,87813.0,87806.0,0.010301]
[1766618317909,0.07972549,87815.0,87806.0,0.010301]
[1766618318116,0.0113877,87814.0,87806.0,0.010301]
[1766618319594,0.02278757,87815.0,87806.0,0.010301]
[1766618319770,0.0114,87815.0,87806.0,0.010301]
[1766618319974,0.02223857,87815.0,87806.0,0.010301]
[1766618320181,0.010851,87815.0,87806.0,0.010301]
[1766618320707,0.02223857,87815.0,87806.0,0.010301]
[1766618320876,0.010851,87815.0,87806.0,0.010301]
[1766618321449,0.010851,87815.0,87806.0,0.02168974]
[1766618321653,0.010851,87815.0,87808.0,0.01138848]
[1766618322000,8.047e-05,87817.0,87808.0,0.01138848]
[1766618322789,8.047e-05,87817.0,87807.0,0.01138861]
[1766618322953,8.047e-05,87817.0,87808.0,0.01138848]
[1766618323844,0.01138744,87816.0,87806.0,0.010301]
[1766618323977,0.01146778,87817.0,87806.0,0.02168974]
[1766618324407,8.047e-05,87817.0,87806.0,0.010301]
[1766618324830,8.047e-05,87817.0,87807.0,0.01138861]
[1766618325027,8.047e-05,87817.0,87808.0,0.01138848]
[1766618325233,8.047e-05,87817.0,87809.0,0.01138835]
[1766618325393,8.047e-05,87817.0,87808.0,0.01138848]
[1766618325593,8.047e-05,87817.0,87807.0,0.01138861]
[1766618326026,8.047e-05,87817.0,87808.0,0.01138848]
[1766618326582,8.047e-05,87817.0,87809.0,0.01138835]
[1766618326782,8.047e-05,87817.0,87808.0,0.01138848]
[1766618328015,8.047e-05,87817.0,87807.0,0.01138861]
[1766618328199,8.047e-05,87817.0,87810.0,0.01138822]
[1766618328431,8.047e-05,87817.0,87809.0,0.01138835]
[1766618328631,4.7e-07,87817.0,87814.0,0.0113877]
[1766618330802,0.08147607,87859.0,87818.0,0.01138718]
[1766618330803,0.04556,87830.0,87818.0,0.01138718]
[1766618331017,0.0114,87836.0,87818.0,0.01138718]
[1766618331018,0.11611,87837.0,87828.0,0.01138589]
[1766618331192,0.12751,87837.0,87829.0,0.01138576]
[1766618331349,0.12751,87837.0,87828.0,0.01138589]
[1766618331551,0.12751,87837.0,87827.0,0.01138602]
[1766618331746,0.12751,87837.0,87828.0,0.01138589]
[1766618331747,0.0114,87837.0,87828.0,0.01138589]
[1766618334130,0.0114,87837.0,87829.0,0.01138576]
[1766618334262,0.0114,87837.0,87830.0,0.01138563]
[1766618334450,0.0114,87837.0,87831.0,0.0113855]
[1766618334671,0.0114,87837.0,87832.0,0.01138537]
[1766618335462,0.0114,87837.0,87831.0,0.0113855]
[1766618336135,0.0114,87837.0,87832.0,0.01138537]
[1766618336491,0.0114,87841.0,87833.0,0.01138524]
[1766618336755,0.0114,87841.0,87834.0,0.01138511]
[1766618336878,0.12749316,87849.0,87835.0,0.07970941]
[1766618337083,0.01138342,87847.0,87835.0,0.07970941]
[1766618337308,0.02278329,87848.0,87836.0,0.01138485]
[1766618337518,0.11611,87856.0,87848.0,0.00047]
[1766618337736,0.0114,87855.0,87845.0,0.01138368]
[1766618338028,0.0114,87855.0,87844.0,0.01138381]
[1766618338348,0.0114,87855.0,87843.0,0.05691961]
[1766618338349,0.02278239,87855.0,87843.0,0.05691961]
[1766618338529,0.02278239,87855.0,87843.0,0.01138394]
[1766618338738,0.01138252,87854.0,87843.0,0.01138394]
[1766618338935,0.01138265,87853.0,87842.0,0.01138407]
[1766618339135,0.01138252,87854.0,87843.0,0.01138394]
[1766618339353,0.13771239,87855.0,87846.0,0.06370586]
[1766618339563,0.01138265,87853.0,87846.0,0.06370586]
[1766618339770,0.01138252,87854.0,87846.0,0.06370586]
[1766618340132,0.13771239,87855.0,87846.0,0.06370586]
[1766618340537,0.12633,87855.0,87846.0,0.06370586]
[1766618341319,0.13771239,87855.0,87846.0,0.06370586]
[1766618341522,0.01138278,87852.0,87841.0,0.0227842]
[1766618341727,0.01138265,87853.0,87842.0,0.01138407]
[1766618342310,0.12633,87855.0,87843.0,0.06830356]
[1766618342514,0.13771239,87855.0,87844.0,0.01138381]
[1766618343156,0.01138252,87854.0,87843.0,0.01138394]
[1766618343588,0.13771239,87855.0,87844.0,0.01138381]
[1766618343794,0.12633,87855.0,87845.0,0.01138368]
[1766618344010,0.12633,87855.0,87846.0,0.01138355]
[1766618344228,0.12633,87855.0,87847.0,0.01138342]
[1766618344432,0.12633,87855.0,87846.0,0.01138355]
[1766618344633,0.12633,87855.0,87797.0,0.10186384]
[1766618344634,0.12633,87855.0,87841.0,0.0227842]
[1766618344841,0.01138265,87853.0,87841.0,0.0114]
[1766618345254,0.01138278,87852.0,87841.0,0.0114]
[1766618345467,0.12633,87855.0,87830.0,0.01138563]
[1766618345468,0.11493,87840.0,87830.0,0.01138563]
[1766618345673,0.11493,87838.0,87833.0,0.06370586]
[1766618345931,0.11493,87838.0,87833.0,0.06405968]
[1766618346746,0.12631459,87838.0,87833.0,0.05277962]
[1766618347189,0.11493,87838.0,87833.0,0.00035382]
[1766618347404,0.12631459,87838.0,87833.0,0.00035382]
[1766618347610,0.11493,87838.0,87833.0,0.00035382]
[1766618347822,0.12631459,87838.0,87833.0,0.00035382]
[1766618351367,0.11493,87838.0,87833.0,0.00035382]
[1766618353796,0.12631459,87838.0,87833.0,0.00035382]
[1766618354206,0.05692527,87835.0,87833.0,0.00035382]
[1766618354342,0.05692528,87835.0,87833.0,0.00035382]
[1766618354550,0.01138602,87827.0,87824.0,0.0114]
[1766618354768,0.01173998,87827.0,87824.0,0.0114]
[1766618354970,0.11528396,87827.0,87824.0,0.0114]
[1766618355628,0.11473496,87827.0,87824.0,0.0114]
[1766618355832,0.11473496,87827.0,87823.0,0.00011]
[1766618360984,0.11473496,87827.0,87819.0,0.0114]
[1766618363234,0.11473496,87827.0,87819.0,0.02278705]
[1766618363420,0.11473496,87827.0,87819.0,0.0114]
[1766618363845,0.11473496,87827.0,87820.0,0.01138692]
[1766618364991,0.0113855,87831.0,87819.0,0.02278705]
[1766618365187,0.0113855,87831.0,87820.0,0.01138692]
[1766618365551,0.01138563,87830.0,87819.0,0.02289307]
[1766618366762,0.0114,87834.0,87822.0,0.01138666]
[1766618366939,0.0114,87834.0,87830.0,0.00011]
[1766618367162,0.0114,87835.0,87830.0,0.00011]
[1766618367362,0.0114,87835.0,87824.0,0.0113864]
[1766618367363,0.0114,87835.0,87824.0,0.06831811]
[1766618367560,0.0114,87835.0,87825.0,0.01138627]
[1766618367767,0.0114,87835.0,87826.0,0.01138614]
[1766618368190,0.0114,87835.0,87825.0,0.01138627]
[1766618368622,0.0114,87835.0,87826.0,0.01138614]
[1766618369014,0.0114,87835.0,87825.0,0.01138627]
[1766618369212,0.0114,87835.0,87826.0,0.01138614]
[1766618369967,0.0114,87835.0,87827.0,0.01138602]
[1766618370316,0.0114,87835.0,87826.0,0.01138614]
[1766618371537,0.0114,87835.0,87824.0,0.0797179]
[1766618371700,0.0114,87835.0,87825.0,0.01138627]
[1766618372301,0.02278498,87835.0,87824.0,0.0797179]
[1766618372537,0.02278498,87835.0,87824.0,0.0227864]
[1766618372998,0.12631446,87839.0,87830.0,0.06370586]
[1766618373195,0.01138498,87835.0,87830.0,0.06326686]
[1766618373656,0.01138511,87834.0,87830.0,0.06326686]
[1766618374602,0.01138498,87835.0,87830.0,0.06326686]
[1766618375602,0.01138498,87835.0,87829.0,0.0114]
[1766618376664,0.01138498,87835.0,87824.0,0.0114]
[1766618376665,0.00055,87829.0,87824.0,0.0114]
[1766618376832,0.00055,87829.0,87819.0,0.06842783]
[1766618377184,0.12661537,87832.0,87823.0,0.0114]
[1766618377185,0.0113855,87831.0,87823.0,0.0114]
[1766618377369,0.1266155,87831.0,87823.0,0.0114]
[1766618377535,0.01138589,87828.0,87823.0,0.0114]
[1766618377736,0.01138614,87826.0,87823.0,0.01085]
[1766618378118,0.01138614,87826.0,87819.0,0.00010602]
[1766618378119,0.0683173,87826.0,87820.0,0.0114]
[1766618378320,0.01138627,87825.0,87820.0,0.0114]
[1766618378553,0.0113864,87824.0,87820.0,0.0114]
[1766618378775,0.01138614,87826.0,87820.0,0.0114]
[1766618379121,0.19107648,87827.0,87820.0,0.0114]
[1766618379122,0.13414602,87827.0,87820.0,0.0114]
[1766618379822,0.12276,87827.0,87820.0,0.0114]
[1766618380898,0.13414602,87827.0,87820.0,0.0114]
[1766618381904,0.12276,87827.0,87820.0,0.0114]
[1766618382058,0.13414602,87827.0,87820.0,0.0114]
[1766618384268,0.13414653,87823.0,87820.0,0.0114]
[1766618384470,0.12276,87820.0,87813.0,0.0114]
[1766618384670,0.01138718,87818.0,87814.0,0.06370586]
[1766618384869,0.12276,87819.0,87813.0,0.01175396]
[1766618385074,0.13414705,87819.0,87813.0,0.01175396]
[1766618385274,0.12276,87819.0,87813.0,0.01175396]
[1766618386417,0.12276,87819.0,87813.0,0.00035396]
[1766618392788,0.122211,87819.0,87813.0,0.00035396]
[1766618395872,0.122211,87819.0,87813.0,0.01174179]
[1766618396051,0.122211,87819.0,87813.0,0.07544765]
[1766618396504,0.122211,87819.0,87813.0,0.06405982]
[1766618396864,0.13359805,87819.0,87813.0,0.06405982]
[1766618397071,0.01138718,87818.0,87813.0,0.06405982]
[1766618397469,0.13359805,87819.0,87813.0,0.06405982]
[1766618398083,0.01138718,87818.0,87813.0,0.06405982]
[1766618398282,0.13359805,87819.0,87813.0,0.06405982]
[1766618400512,0.01138718,87818.0,87813.0,0.00035396]
[1766618400773,0.00019504,87813.0,87808.0,0.0114]
[1766618400977,0.00035381,87813.0,87808.0,0.0114]
[1766618402211,8.1e-07,87813.0,87808.0,0.0114]
[1766618403795,8.1e-07,87813.0,87808.0,0.02278848]
[1766618404197,8.1e-07,87813.0,87809.0,0.01138835]
[1766618404397,8.1e-07,87813.0,87808.0,0.02278848]
[1766618404618,8.1e-07,87813.0,87808.0,0.0114]
[1766618405278,0.11860081,87813.0,87807.0,0.00011]
[1766618406161,8.1e-07,87813.0,87808.0,0.01138848]
[1766618406621,0.0114,87820.0,87810.0,0.01138822]
[1766618406817,0.01145638,87820.0,87811.0,0.01138809]
[1766618407400,0.01145638,87820.0,87813.0,0.01138783]
[1766618407741,0.01145638,87820.0,87812.0,0.06370586]
[1766618407742,0.01145638,87820.0,87812.0,0.13203333]
[1766618408719,0.01145638,87820.0,87813.0,0.01138783]
[1766618409762,0.01145638,87820.0,87812.0,0.06370586]
[1766618410913,0.0228433,87820.0,87812.0,0.06370586]
[1766618412139,0.01145638,87820.0,87812.0,0.06370586]
[1766618412623,0.0228433,87820.0,87812.0,0.06370586]
[1766618412822,0.01145638,87820.0,87812.0,0.06370586]
[1766618414276,0.01145638,87820.0,87812.0,0.07509382]
[1766618414613,0.01145638,87820.0,87813.0,0.01138783]
[1766618414752,0.01145638,87820.0,87814.0,0.0113877]
[1766618414953,0.0114,87822.0,87820.0,0.000551]
[1766618415163,0.0114,87822.0,87820.0,8.855e-05]
[1766618419285,0.05692875,87830.0,87820.0,8.855e-05]
[1766618419286,0.01138511,87834.0,87822.0,0.000551]
[1766618419542,0.01138537,87832.0,87822.0,0.000551]
[1766618419679,0.01138537,87832.0,87821.0,0.01138679]
[1766618420044,0.01138472,87837.0,87826.0,0.075092]
[1766618420247,0.01138485,87836.0,87826.0,0.06370586]
[1766618420369,0.02278485,87836.0,87826.0,0.06370586]
[1766618420722,0.010849,87836.0,87832.0,0.01138537]
[1766618420947,0.0114,87837.0,87830.0,0.01138563]
[1766618421399,0.0114,87837.0,87831.0,0.0113855]
[1766618421587,0.0114,87837.0,87832.0,0.01138537]
[1766618422531,0.0114,87837.0,87831.0,0.0113855]
[1766618422899,0.0114,87837.0,87832.0,0.01138537]
[1766618423900,0.1186,87838.0,87833.0,0.01138524]
[1766618424101,0.00011,87843.0,87832.0,0.02278537]
[1766618424308,0.00011,87843.0,87833.0,0.01138524]
[1766618424507,0.00011,87843.0,87834.0,0.01138511]
[1766618425714,0.00011,87843.0,87833.0,0.01138524]
[1766618425912,0.00011,87843.0,87834.0,0.01138511]
[1766618427098,0.00011,87843.0,87833.0,0.01138524]
[1766618427297,0.00011,87843.0,87834.0,0.01138511]
[1766618427751,0.0114,87846.0,87837.0,0.01138472]
[1766618427911,0.02278329,87848.0,87837.0,0.01138472]
[1766618428124,0.12998265,87853.0,87842.0,0.01138407]
[1766618428335,0.0114,87849.0,87840.0,0.06370586]
[1766618428512,0.0114,87849.0,87842.0,0.01138407]
[1766618428715,0.1127,87860.0,87847.0,0.01138342]
[1766618428916,0.0114,87858.0,87847.0,0.01138342]
[1766618429140,0.022782,87858.0,87845.0,0.01138368]
[1766618429347,0.01138226,87856.0,87845.0,0.01138368]
[1766618429541,0.01138213,87857.0,87846.0,0.01138355]
[1766618429745,0.0114,87858.0,87848.0,0.05691649]
[1766618429907,5.9e-07,87858.0,87849.0,0.01138316]
[1766618431230,5.9e-07,87858.0,87850.0,0.01138303]
[1766618431448,5.9e-07,87858.0,87849.0,0.01138316]
[1766618432031,0.000549,87849.0,87848.0,8.059e-05]
[1766618432561,0.01138226,87856.0,87848.0,8.059e-05]
[1766618432915,0.01138239,87855.0,87848.0,8.059e-05]
[1766618433318,0.01138239,87855.0,87848.0,5.9e-07]
[1766618433818,0.01138226,87856.0,87848.0,5.9e-07]
[1766618434367,0.01138213,87857.0,87848.0,5.9e-07]
[1766618435730,0.01138226,87856.0,87848.0,5.9e-07]
[1766618437661,0.01138213,87857.0,87848.0,5.9e-07]
[1766618440299,0.01138226,87856.0,87848.0,5.9e-07]
[1766618441124,0.01138239,87855.0,87848.0,5.9e-07]
[1766618441439,0.01138252,87854.0,87848.0,5.9e-07]
[1766618441743,0.01138265,87853.0,87848.0,5.9e-07]
[1766618442621,0.01138252,87854.0,87848.0,5.9e-07]
[1766618443036,0.01138265,87853.0,87848.0,5.9e-07]
[1766618443545,0.01138252,87854.0,87848.0,5.9e-07]
[1766618443747,0.01138174,87860.0,87854.0,8e-05]
[1766618443954,0.01138135,87863.0,87854.0,8e-05]
[1766618444212,0.18099008,87861.0,87848.0,0.01138388]
[1766618444338,0.01138174,87860.0,87849.0,0.01138316]
[1766618444542,0.01138174,87860.0,87848.0,0.01138388]
[1766618444743,0.05690888,87860.0,87848.0,0.01138388]
[1766618445245,0.01138259,87858.0,87848.0,5.9e-07]
[1766618445450,0.01138213,87857.0,87848.0,5.9e-07]
[1766618445633,0.01138226,87856.0,87848.0,5.9e-07]
[1766618446150,0.01138239,87855.0,87848.0,5.9e-07]
[1766618446344,0.06829597,87853.0,87848.0,5.9e-07]
[1766618446768,0.01138278,87852.0,87848.0,5.9e-07]
[1766618447617,0.0113829,87851.0,87848.0,5.9e-07]
[1766618448468,0.01138278,87852.0,87848.0,5.9e-07]
[1766618449308,0.01138265,87853.0,87848.0,5.9e-07]
[1766618450682,0.01138252,87854.0,87848.0,5.9e-07]
[1766618450881,0.01138226,87856.0,87848.0,5.9e-07]
[1766618451390,0.01138239,87855.0,87848.0,5.9e-07]
[1766618451952,0.01138252,87854.0,87848.0,5.9e-07]
[1766618452990,0.01138278,87852.0,87848.0,5.9e-07]
[1766618453197,0.01138265,87853.0,87848.0,5.9e-07]
[1766618453399,0.01138278,87852.0,87848.0,5.9e-07]
[1766618455111,0.01138265,87853.0,87848.0,5.9e-07]
[1766618455924,0.0113829,87851.0,87849.0,2e-08]
[1766618456334,0.06829775,87851.0,87849.0,2e-08]
[1766618457539,0.01138265,87853.0,87849.0,2e-08]
[1766618457749,0.01147123,87853.0,87849.0,2e-08]
[1766618458147,0.01147123,87853.0,87847.0,0.0114]
[1766618459189,8.858e-05,87853.0,87847.0,0.0114]
[1766618460059,0.01147123,87853.0,87847.0,0.0114]
[1766618460865,0.01138278,87852.0,87847.0,0.01107057]
[1766618461241,0.0113829,87851.0,87847.0,0.01107057]
[1766618461426,0.06838449,87853.0,87827.0,0.01138602]
[1766618461427,0.06830404,87843.0,87827.0,0.01138602]
[1766618461627,0.12869433,87840.0,87828.0,0.0114]
[1766618461884,0.11731,87836.0,87834.0,0.0341796]
[1766618462114,0.01138498,87835.0,87829.0,0.0114]
[1766618462591,0.12869485,87836.0,87829.0,0.0114]
[1766618462761,0.12869485,87836.0,87826.0,0.09788721]
[1766618462762,0.11723,87836.0,87831.0,0.0113855]
[1766618462943,0.06841331,87844.0,87834.0,0.05692492]
[1766618462944,0.11731,87843.0,87834.0,0.05692492]
[1766618463361,0.11731,87843.0,87836.0,0.01138485]
[1766618463565,0.11731,87843.0,87835.0,0.01138498]
[1766618463752,0.11731,87843.0,87836.0,0.01138485]
[1766618464366,0.11731,87843.0,87835.0,0.01138498]
[1766618464803,0.11676,87843.0,87835.0,0.01138498]
[1766618464999,0.11676,87843.0,87836.0,0.01138485]
[1766618465202,0.11676,87843.0,87833.0,0.06831098]
[1766618465535,0.11676,87843.0,87836.0,0.01138485]
[1766618465867,0.0113829,87851.0,87840.0,0.06370586]
[1766618466069,0.0114,87850.0,87840.0,0.06370586]
[1766618466315,0.0114,87850.0,87840.0,0.07509019]
[1766618467403,0.02278303,87850.0,87840.0,0.06370586]
[1766618467603,0.0114,87850.0,87840.0,0.07509019]
[1766618467804,0.02278303,87850.0,87840.0,0.06370586]
[1766618468010,0.0114,87850.0,87840.0,0.07509019]
[1766618468658,0.02278303,87850.0,87840.0,0.06370586]
[1766618469764,8.858e-05,87853.0,87841.0,0.0113842]
[1766618469972,0.0114,87850.0,87842.0,0.01138407]
[1766618470168,0.0114,87850.0,87843.0,0.01138394]
[1766618470862,0.0114,87850.0,87842.0,0.01138407]
[1766618471365,0.0114,87850.0,87841.0,0.06830489]
[1766618471545,0.0114,87850.0,87842.0,0.01138407]
[1766618473399,0.0114,87850.0,87841.0,0.06830489]
[1766618473599,0.0114,87850.0,87841.0,0.0113842]
[1766618474836,0.0114,87850.0,87840.0,0.08649019]
[1766618476063,0.0114,87850.0,87819.0,0.22773996]
[1766618476064,0.11731,87838.0,87819.0,0.22773996]
[1766618476267,0.11731,87834.0,87824.0,0.0114964]
[1766618476415,0.11731,87834.0,87824.0,0.00011]
[1766618477016,0.11731,87834.0,87826.0,0.01138614]
[1766618477176,0.11731,87834.0,87828.0,0.01138589]
[1766618477387,0.11731,87834.0,87827.0,0.01138602]
[1766618478001,0.11731,87834.0,87826.0,0.01138614]
[1766618478198,0.11731,87834.0,87824.0,0.0114964]
[1766618478411,0.12869511,87834.0,87824.0,0.00011]
[1766618478656,0.01138524,87833.0,87824.0,0.00011]
[1766618478835,0.01138537,87832.0,87824.0,0.00011]
[1766618479261,0.0113855,87831.0,87824.0,0.00011]
[1766618479456,0.0113855,87831.0,87821.0,0.0114]
[1766618479457,0.11731,87829.0,87821.0,0.0114]
[1766618479632,0.01138602,87827.0,87821.0,0.0114]
[1766618479833,0.01138614,87826.0,87821.0,0.0114]
[1766618480160,0.01138614,87826.0,87821.0,0.010961]
[1766618480526,0.01138627,87825.0,87821.0,0.010961]
[1766618481185,0.0113864,87824.0,87821.0,0.010961]
[1766618481379,0.0113864,87824.0,87815.0,0.04554616]
[1766618481380,0.01138653,87823.0,87815.0,0.04554616]
[1766618481625,0.06832283,87819.0,87817.0,0.0114]
[1766618481883,0.06832283,87819.0,87807.0,0.00011]
[1766618481884,0.01138731,87817.0,87810.0,0.0113864]
[1766618482074,0.01138757,87815.0,87811.0,0.0114]
[1766618482399,0.01138731,87817.0,87811.0,0.0114]
[1766618483043,0.01138757,87815.0,87811.0,0.0114]
[1766618483962,0.0113877,87814.0,87811.0,0.0114]
[1766618484982,0.05693917,87813.0,87811.0,0.0114]
[1766618485330,0.1286977,87814.0,87810.0,8.855e-05]
[1766618485551,0.12869783,87813.0,87807.0,0.00011]
[1766618485766,0.12869783,87813.0,87810.0,0.04554616]
[1766618488274,0.12869783,87813.0,87807.0,0.00016638]
[1766618490583,0.11731,87813.0,87807.0,0.00016638]
[1766618495567,0.12869783,87813.0,87807.0,0.00016638]
[1766618495769,0.01138796,87812.0,87807.0,0.00016638]
[1766618495923,0.12869783,87813.0,87807.0,0.00016638]
[1766618498025,0.12869783,87813.0,87807.0,3.8e-07]
[1766618498026,0.01138809,87811.0,87807.0,3.8e-07]
[1766618499175,0.13159835,87809.0,87806.0,3.8e-07]
[1766618499381,0.13159835,87809.0,87800.0,0.00024908]
[1766618499382,0.12021,87802.0,87800.0,0.00024908]
[1766618499521,0.12031602,87802.0,87800.0,0.00024908]
[1766618499874,0.12031602,87802.0,87800.0,8e-08]
[1766618501523,0.11990202,87802.0,87800.0,8e-08]
[1766618502147,0.11990202,87802.0,87793.0,0.02279042]
[1766618502550,0.11990202,87802.0,87793.0,0.0114]
[1766618502797,0.11990202,87802.0,87793.0,0.02279042]
[1766618504641,0.11990202,87802.0,87793.0,0.0114]
[1766618505157,0.13129128,87802.0,87793.0,0.0114]
[1766618506435,0.11990202,87802.0,87793.0,0.0114]
[1766618510324,0.11990202,87802.0,87793.0,0.02279042]
[1766618510524,0.11990202,87802.0,87793.0,0.0114]
[1766618510874,0.11990202,87802.0,87793.0,0.02279042]
[1766618511270,0.11990202,87802.0,87793.0,0.0114]
[1766618512423,0.13129128,87802.0,87793.0,0.0114]
[1766618512711,0.01138939,87801.0,87793.0,0.0114]
[1766618512846,0.13129128,87802.0,87793.0,0.0114]
[1766618513318,0.13129128,87802.0,87797.0,0.04554616]
[1766618513319,0.11990202,87802.0,87797.0,0.04554616]
[1766618514134,0.13129128,87802.0,87797.0,0.04554616]
[1766618514903,0.11990202,87802.0,87797.0,0.04554616]
[1766618515105,0.13129128,87802.0,87797.0,0.04554616]
[1766618515304,0.11990202,87802.0,87797.0,0.04554616]
[1766618516999,0.11960633,87802.0,87797.0,0.04554616]
[1766618518444,0.00010602,87802.0,87797.0,0.04554616]
[1766618521756,0.01149528,87802.0,87797.0,0.04554616]
[1766618522337,0.00010602,87802.0,87797.0,0.04554616]
[1766618523315,0.22774688,87817.0,87797.0,0.04554616]
[1766618523316,0.01138666,87822.0,87808.0,0.01138848]
[1766618523528,0.01138796,87812.0,87808.0,0.010851]
[1766618523744,0.0113877,87814.0,87808.0,0.010851]
[1766618523989,0.01138796,87812.0,87808.0,0.010851]
[1766618524193,0.01138809,87811.0,87808.0,0.010851]
[1766618524488,0.05694177,87809.0,87808.0,0.010851]
[1766618524815,0.05694177,87809.0,87808.0,1e-06]
[1766618525620,0.17965177,87809.0,87808.0,1e-06]
[1766618525874,0.13409874,87806.0,87800.0,0.0114]
[1766618526071,0.01138887,87805.0,87800.0,0.0114]
[1766618526280,0.19104269,87806.0,87800.0,0.0114]
[1766618526579,0.01138887,87805.0,87800.0,0.0114]
[1766618527759,0.19104269,87806.0,87800.0,0.0114]
[1766618528350,0.01138887,87805.0,87800.0,0.0114]
[1766618529722,0.011389,87804.0,87800.0,0.0114]
[1766618529924,0.011389,87804.0,87797.0,0.0114]
[1766618530125,0.01138887,87805.0,87797.0,0.0114]
[1766618531526,0.011389,87804.0,87797.0,0.0114]
[1766618531911,0.01138887,87805.0,87797.0,0.0114]
[1766618532930,0.011389,87804.0,87797.0,0.0114]
[1766618533350,0.01138887,87805.0,87797.0,0.0114]
[1766618533752,0.12271,87806.0,87797.0,0.0114]
[1766618533960,0.1340977,87814.0,87803.0,0.01138913]
[1766618534161,0.1340977,87814.0,87797.0,0.0114]
[1766618534162,0.01138783,87813.0,87802.0,0.01138926]
[1766618534308,0.13411,87814.0,87803.0,0.01138913]
[1766618534514,0.13411,87814.0,87804.0,0.011389]
[1766618535059,0.13411,87814.0,87805.0,0.01138887]
[1766618535221,0.13411,87814.0,87806.0,0.01138874]
[1766618535643,0.13411,87814.0,87805.0,0.06833292]
[1766618535644,0.133561,87814.0,87805.0,0.01138887]
[1766618535990,0.133561,87814.0,87806.0,0.01138874]
[1766618536207,0.133561,87814.0,87805.0,0.01138887]
[1766618536952,0.133561,87814.0,87804.0,0.022789]
[1766618537351,0.01138796,87812.0,87804.0,0.0114]
[1766618537688,0.1449487,87814.0,87804.0,0.0114]
[1766618538190,0.14499302,87814.0,87804.0,0.0114]
[1766618538418,0.14499302,87814.0,87803.0,0.01138913]
[1766618538538,0.01138796,87812.0,87801.0,0.01138939]
[1766618538737,0.01138861,87807.0,87799.0,0.0114]
[1766618539370,0.01138887,87805.0,87799.0,0.0114]
[1766618539732,0.011389,87804.0,87799.0,0.0114]
[1766618539899,0.01138887,87805.0,87799.0,0.0114]
[1766618540579,0.01138874,87806.0,87799.0,0.0114]
[1766618541186,0.01138848,87808.0,87799.0,0.0114]
[1766618541571,0.01138874,87806.0,87799.0,0.0114]
[1766618541768,0.01138848,87808.0,87799.0,0.0114]
[1766618541769,0.01138861,87807.0,87799.0,0.0114]
[1766618543565,0.01138887,87805.0,87799.0,0.0114]
[1766618543783,0.13409874,87806.0,87799.0,0.0114]
[1766618544284,0.05694182,87809.0,87799.0,0.0114]
[1766618544634,0.01138861,87807.0,87799.0,0.0114]
[1766618544862,0.01138848,87808.0,87799.0,0.0114]
[1766618545230,0.01138822,87810.0,87799.0,0.0114]
[1766618545577,0.01138822,87810.0,87799.0,0.02278965]
[1766618546098,0.01138822,87810.0,87799.0,0.0114]
[1766618546372,0.01138822,87810.0,87799.0,0.02278965]
[1766618546589,0.01138809,87811.0,87799.0,0.02278965]
[1766618546767,0.12271,87815.0,87803.0,0.01138913]
[1766618546975,4.432e-05,87814.0,87807.0,0.01138861]
[1766618547157,0.17964433,87821.0,87814.0,4.4e-05]
[1766618547490,0.01138705,87819.0,87814.0,4.4e-05]
[1766618547693,0.06832343,87818.0,87810.0,0.05694616]
[1766618548194,0.01138783,87813.0,87810.0,0.05694616]
[1766618548368,0.05693883,87814.0,87810.0,0.0114]
[1766618548574,0.0113877,87814.0,87810.0,0.0114]
[1766618548779,0.01138757,87815.0,87810.0,0.0114]
[1766618548966,0.0113877,87814.0,87810.0,0.0114]
[1766618549171,0.01138783,87813.0,87810.0,0.0114]